Workbook

Sheet 14.11
A2: МБОУ "СОШ №33" НМР РТ | D2: Отд./корп | E2: 1 неделя | H2: День | I2: 2022-11-14
A4: Раздел | B4: № рец. | C4: Блюдо | D4: Выход, г | E4: Цена | F4: Ккал | G4: Белки | H4: Жиры | I4: Угл-ды
A5: Завтрак
B6: 1 | C6: Бутерброд с маслом сливочным (30/10) | D6: 40 | F6: 144.6 | G6: 2.33 | H6: 8.12 | I6: 15.55
A7: 2 блюдо | B7: 175 | C7: Каша "Дружба" молочная с маслом сливочным | D7: 180/5 | F7: 207.77 | G7: 5.45 | H7: 7.16 | I7: 30.110
A8: напиток | B8: 376 | C8: Чай с сахаром с яблоком | D8: 200 | F8: 36.68 | G8: 0.11 | H8: 0.06 | I8: 8.97
A9: хлеб | C9: Батон нарезной | D9: 75 | F9: 195.52 | G9: 5.6 | H9: 2.16 | I9: 38.36
D10: 500 | E10: 37.55 | F10: =F6+F7+F8+F9 -> 584.57 | G10: =G6+G7+G8+G9 -> 13.49 | H10: 17.50 | I10: 92.99
A11: Обед
A12: 1 блюдо | B12: 88 | C12: Щи из свежей капусты с картофелем, со сметаной | D12: 200/10 | F12: 87.99 | G12: 1.68 | H12: 5.46 | I12: 6.68
A13: 2 блюдо | B13: 417 | C13: Котлеты по-хлыновски | D13: 90 | F13: 258.61 | G13: 11.72 | H13: 19.20 | I13: 6.030
A14: гарнир | B14: 203 | C14: Макароны отварные с маслом слив. | D14: 180/3 | F14: 206.96 | G14: 6.83 | H14: 2.93 | I14: 38.290
A15: напиток | B15: 389 | C15: Сок фруктовы (нектар плодовый) | D15: 200 | F15: 85.34 | G15: 1.00 | H15: 0.20 | I15: 20.20
A16: хлеб | C16: Хлеб ржаной | D16: 45 | F16: 88.92 | G16: 2.96 | H16: 0.54 | I16: 17.78
D17: 728 | E17: 68.45 | F17: =SUM(F12:F16) -> 727.82 | G17: =SUM(G12:G16) -> 24.19 | H17: 28.33 | I17: 88.98
C18: бесп питание младшие + допол. питание | D18: =D10+D17 -> 1228 | E18: =SUM(E10+E17) -> 106.00 | F18: =SUM(F10+F17) -> 1312.39 | G18: =SUM(G10+G17) -> 37.68 | H18: 45.83 | I18: 181.97
A20: Горячий завтрак (младшие)
B21: 14 | C21: Масло сливочное порциями | D21: 10 | F21: 66.00 | G21: 0.08 | H21: 7.25 | I21: 0.13
A22: 2 блюдо | B22: 417 | C22: Котлеты по-хлыновски | D22: 90 | F22: 258.61 | G22: 11.72 | H22: 19.20 | I22: 6.030
A23: гарнир | B23: 203 | C23: Макароны отварные с маслом сливоч. | D23: 150/3 | F23: 176.10 | G23: 5.68 | H23: 2.88 | I23: 31.96
A24: гор.напиток | B24: 376 | C24: Чай с сахаром с яблоком | D24: 200 | F24: 36.68 | G24: 0.11 | H24: 0.06 | I24: 8.97
A25: хлеб | C25: Хлеб ржаной/пшеничный | D25: 20/30 | F25: 107.60 | G25: 3.60 | H25: 0.48 | I25: 22.68
C27: бесплатное питание младшие | D27: 503 | E27: 68.45 | F27: =F21+F22+F23+F24+F25+F26 -> 644.99 | G27: =G21+G22+G23+G24+G25+G26 -> 21.19 | H27: =H21+H22+H23+H24+H25+H26 -> 29.87 | I27: =I21+I22+I23+I24+I25+I26 -> 69.77
A29: Раздел | B29: № рец. | C29: Блюдо | D29: Выход, г | E29: Цена | F29: Ккал | G29: Белки | H29: Жиры | I29: Угл-ды
A30: Старшие
B31: 14 | C31: Масло сливочное порциями | D31: 10 | F31: 66.00 | G31: 0.08 | H31: 7.25 | I31: 0.13
A32: 2 блюдо | B32: 417 | C32: Котлеты по-хлыновски | D32: 100 | F32: 287.34 | G32: 10.80 | H32: 11.33 | I32: 6.700
A33: гарнир | B33: 203 | C33: Макароны отварные с маслом сливоч. | D33: 180/5 | F33: 206.96 | G33: 6.83 | H33: 2.93 | I33: 38.29
A34: гор.напиток | B34: 376 | C34: Чай с сахаром с яблоком | D34: 200 | F34: 36.68 | G34: 0.11 | H34: 0.06 | I34: 8.97
A35: хлеб | C35: Хлеб ржаной/пшеничный | D35: 30/25 | F35: 120.50 | G35: 3.93 | H35: 0.54 | I35: 24.66
C37: питание старшие | D37: 550 | E37: 78.00 | F37: =F31+F32+F33+F34+F35 -> 717.48 | G37: =G31+G32+G33+G34+G35 -> 21.75 | H37: 22.11 | I37: 78.75

Sheet 15.11
A2: МБОУ "СОШ №33" НМР РТ | D2: Отд./корп | E2: 1 неделя | H2: День | I2: 2022-11-15
A4: Раздел | B4: № рец. | C4: Блюдо | D4: Выход, г | E4: Цена | F4: Ккал | G4: Белки | H4: Жиры | I4: Угл-ды
A5: Завтрак
B6: 3 | C6: Бутерброд с сыром (30/15/5) | D6: 50 | F6: 155 | G6: 6.27 | H6: 7.03 | I6: 14.83
A7: 2 блюдо | B7: 173 | C7: Каша молочная геркулесовая с маслом сливочным | D7: 200 | F7: 285.00 | G7: 9.00 | H7: 9.85 | I7: 40.090
A8: напиток | B8: 379 | C8: Кофейный напиток с молоком | D8: 200 | F8: 60.10 | G8: 3.17 | H8: 2.68 | I8: 9.98
A9: хлеб | C9: Батон нарезной | D9: 50 | F9: 132 | G9: 3.76 | H9: 1.74 | I9: 30.84
D10: =SUM(D6:D9) -> 500 | E10: 37.55 | F10: =SUM(F6:F9) -> 632.10 | G10: =SUM(G6:G9) -> 22.20 | H10: 21.30 | I10: 95.74
A11: Обед
A12: 1 блюдо | B12: 96 | C12: Рассольник "Ленинградский" со сметаной | D12: 200/10 | F12: 102.00 | G12: 1.87 | H12: 5.57 | I12: 9.94
A13: гарнир | B13: 143, 241 | C13: Овощи тушеные с мясом 50/150 | D13: 200 | F13: 287.00 | G13: 14.10 | H13: 11.37 | I13: 10.390
A14: доп.гарнир | B14: 321 | C14: Квашенная капуста | D14: 50 | F14: 32.60 | G14: 0.92 | H14: 1.61 | I14: 3.600
A15: напиток | C15: Напиток из замороженных фруктов | D15: 200 | F15: 89.00 | G15: 0.20 | H15: 0.10 | I15: 19.82
A16: хлеб | C16: Хлеб ржаной/пшеничный | D16: 45/20 | F16: 135.92 | G16: 4.28 | H16: 0.7 | I16: 27.62
D17: 725 | E17: 68.45 | F17: =SUM(F12:F16) -> 646.52 | G17: =SUM(G12:G16) -> 21.37 | H17: 19.35 | I17: 71.37
C18: бесп питание младшие + допол. питание | D18: =D10+D17 -> 1225 | E18: =SUM(E10+E17) -> 106.00 | F18: =SUM(F10+F17) -> 1278.62 | G18: =SUM(G10+G17) -> 43.57 | H18: =SUM(H10+H17) -> 40.65 | I18: =SUM(I10+I17) -> 167.11
A20: Горячий завтрак (младшие)
A21: гарнир | B21: 143, 241 | C21: Овощи тушеные с мясом 50/150 | D21: 200 | F21: 287.00 | G21: 14.10 | H21: 11.37 | I21: 10.390
A22: доп.гарнир | B22: 321 | C22: Квашенная капуста | D22: 50 | F22: 32.60 | G22: 0.92 | H22: 1.61 | I22: 3.600
A23: напиток | B23: 379 | C23: Кофейный напиток с молоком | D23: 200 | F23: 60.10 | G23: 3.17 | H23: 2.68 | I23: 9.98
A24: хлеб | C24: Хлеб ржаной/пшеничный | D24: 20/30 | F24: 107.60 | G24: 3.60 | H24: 0.48 | I24: 22.68
C26: бесплатное питание младшие | D26: 500 | E26: 68.45 | F26: =F21+F22+F23+F24+F25 -> 487.30 | G26: =G21+G22+G23+G24+G25 -> 21.79 | H26: 16.14 | I26: 46.65
A28: Раздел | B28: № рец. | C28: Блюдо | D28: Выход, г | E28: Цена | F28: Ккал | G28: Белки | H28: Жиры | I28: Угл-ды
A29: Старшие
A30: гарнир | B30: 143, 241 | C30: Овощи тушеные с мясом 50/200 | D30: 250 | F30: 339.00 | G30: 14.09 | H30: 15.40 | I30: 13.790
A31: доп.гарнир | B31: 321 | C31: Квашенная капуста | D31: 50 | F31: 32.60 | G31: 0.92 | H31: 1.61 | I31: 3.600
A32: напиток | C32: Напиток из замороженных фруктов | D32: 200 | F32: 68.12 | G32: 0.20 | H32: 0.10 | I32: 19.82
A33: хлеб | C33: Хлеб ржаной/пшеничный | D33: 30/30 | F33: 130.28 | G33: 29.97 | H33: 0.60 | I33: 26.68
C35: питание старшие | D35: 560 | E35: 78.00 | F35: =SUM(F30:F33) -> 570.00 | G35: =SUM(G30:G33) -> 45.18 | H35: 17.71 | I35: 63.89

Sheet 16.11
A2: МБОУ "СОШ №33" НМР РТ | D2: Отд./корп | E2: 1 неделя | H2: День | I2: 2022-11-16
A4: Раздел | B4: № рец. | C4: Блюдо | D4: Выход, г | E4: Цена | F4: Ккал | G4: Белки | H4: Жиры | I4: Угл-ды
A5: Завтрак
A6: фрукты | C6: Фрукты (яблоки) | D6: 100 | F6: 47.00 | G6: 0.40 | H6: 0.40 | I6: 9.80
A7: 2 блюдо | B7: 173 | C7: Каша пшенная молочная с маслом сливоч. | D7: 180/5 | F7: 248.82 | G7: 7.74 | H7: 17.05 | I7: 38.44
A8: гор.напиток | B8: 376 | C8: Чай с сахаром | D8: 200 | F8: 40.00 | G8: 0.07 | H8: 0.02 | I8: 10.00
A9: хлеб | C9: Батон нарезной | D9: 50 | F9: 132.00 | G9: 3.76 | H9: 1.74 | I9: 30.84
D11: 535 | E11: 37.55 | F11: =F6+F7+F8+F9+F10 -> 467.82 | G11: =G6+G7+G8+G9+G10 -> 11.97 | H11: =H6+H7+H8+H9+H10 -> 19.21 | I11: =I6+I7+I8+I9+I10 -> 89.08
A12: Обед
A13: 1 блюдо | B13: 113 | C13: Суп - лапша домашняя с картофелем | D13: 200 | F13: 87.20 | G13: 2.05 | H13: 2.22 | I13: 12.55
A14: 2 блюдо | B14: 321 | C14: Плов из куриных грудок | D14: 50/150 | F14: 363.62 | G14: 19.58 | H14: 13.54 | I14: 41.38
A15: доп.гарнир | B15: 10 | C15: Зеленый горошек к/с | D15: 30 | F15: 12.01 | G15: 0.93 | H15: 0.06 | I15: 1.95
A16: напиток | B16: 358 | C16: Кисель | D16: 200 | F16: 123.50 | G16: 0.06 | H16: 0.06 | I16: 30.20
A17: хлеб | C17: Хлеб пшеничный/ржаной | D17: 30/45 | F17: 159.92 | G17: 5.24 | H17: 0.78 | I17: 32.54
D18: 705 | E18: 68.45 | F18: =SUM(F13:F17) -> 746.25 | G18: =SUM(G13:G17) -> 27.86 | H18: 16.66 | I18: 118.62
C19: бесп питание младшие + допол. питание | D19: =D11+D18 -> 1240 | E19: =SUM(E11+E18) -> 106.00 | F19: =SUM(F11+F18) -> 1214.07 | G19: =SUM(G11+G18) -> 39.83 | H19: 35.87 | I19: 207.70
A21: Горячий завтрак (младшие)
A22: доп.гарнир | B22: 10 | C22: Зеленый горошек к/с | D22: 30 | F22: 12.01 | G22: 0.93 | H22: 0.06 | I22: 1.95
A23: 2 блюдо | B23: 291 | C23: Плов из куриных грудок | D23: 50/150 | F23: 363.62 | G23: 9.58 | H23: 13.54 | I23: 41.38
A24: гор.напиток | B24: 376 | C24: Чай с сахаром | D24: 200 | F24: 40.00 | G24: 0.07 | H24: 0.02 | I24: 10.00
A25: хлеб | C25: Хлеб пшеничный/ржаной | D25: 30/40 | F25: 204.65 | G25: 6.74 | H25: 1.05 | I25: 41.49
C27: бесплатное питание младшие | D27: 500 | E27: 68.45 | F27: =SUM(F22:F25) -> 620.28 | G27: =SUM(G22:G25) -> 17.32 | H27: 14.67 | I27: 94.82
A29: Раздел | B29: № рец. | C29: Блюдо | D29: Выход, г | E29: Цена | F29: Ккал | G29: Белки | H29: Жиры | I29: Угл-ды
A30: Старшие
A31: хлеб | C31: Печенье | D31: 30 | F31: 125.10 | G31: 2.25 | H31: 2.94 | I31: 22.32
A32: доп.гарнир | B32: 10 | C32: Зеленый горошек к/с | D32: 30 | F32: 12.01 | G32: 0.93 | H32: 0.06 | I32: 1.95
A33: 2 блюдо | B33: 291 | C33: Плов из куриных грудок | D33: 250 | F33: 419.54 | G33: 20.42 | H33: 15.69 | I33: 49.96
A34: гор.напиток | B34: 376 | C34: Чай с сахаром | D34: 200 | F34: 40.00 | G34: 0.07 | H34: 0.02 | I34: 10.00
A35: хлеб | B35: 2012 | C35: Хлеб ржаной/пшеничный | D35: 20/30 | F35: 107.60 | G35: 3.60 | H35: 0.48 | I35: 22.68
C37: питание старшие | D37: 560 | E37: 78.00 | F37: =SUM(F31:F35) -> 704.25 | G37: =SUM(G31:G35) -> 27.27 | H37: 19.19 | I37: 106.91

Sheet 17.11
A2: МБОУ "СОШ №33" НМР РТ | D2: Отд./корп | E2: 1 неделя | H2: День | I2: 2022-11-17
A4: Раздел | B4: № рец. | C4: Блюдо | D4: Выход, г | E4: Цена | F4: Ккал | G4: Белки | H4: Жиры | I4: Угл-ды
A5: Завтрак
A6: 2 блюдо | B6: 309 | C6: Каша кукурузная молочная с маслом сливочным | D6: 180/5 | F6: 266.70 | G6: 6.78 | H6: 7.07 | I6: 43.89
A7: гор.напиток | B7: 382 | C7: Какао с молоком | D7: 200 | F7: 78.70 | G7: 1.08 | H7: 3.54 | I7: 7.60
A8: хлеб | C8: Печенье | D8: 50 | F8: 210.81 | G8: 10.27 | H8: 11.94 | I8: 17.32
A9: хлеб | C9: Батон нарезной | D9: 65 | F9: 170.13 | G9: 4.87 | H9: 1.88 | I9: 33.38
D11: 500 | E11: 37.55 | F11: =SUM(F6:F10) -> 726.34 | G11: =SUM(G6:G10) -> 23.00 | H11: 24.43 | I11: 102.19
A12: Обед
A13: доп.гарнир | C13: Салат из фасоли к/с, кукурузы к/с, огурцов соленых | D13: 60 | F13: 160.10 | G13: 6.51 | H13: 7.03 | I13: 16.26
A14: 1 блюдо | B14: 82 | C14: Борщ из свежей капусты с картофелем | D14: 250 | F14: 103.75 | G14: 1.83 | H14: 4.92 | I14: 10.93
A15: 2 блюдо | B15: 284 | C15: Запеканка картофельная с мясом | D15: 180 | F15: 387.85 | G15: 17.74 | H15: 24.03 | I15: 28.30
A16: напиток | B16: 349 | C16: Напиток из сухофруктов | D16: 200 | F16: 132.80 | G16: 0.70 | H16: 0.10 | I16: 32.00
A17: хлеб | C17: Хлеб пшеничный/ржаной | D17: 20/45 | F17: 135.92 | G17: 4.28 | H17: 0.70 | I17: 27.62
D18: 755 | E18: 68.45 | F18: =SUM(F13:F17) -> 920.42 | G18: =SUM(G13:G17) -> 31.06 | H18: 36.78 | I18: 115.11
C19: бесп питание младшие + допол. питание | D19: =D11+D18 -> 1255 | E19: =SUM(E11+E18) -> 106.00 | F19: =SUM(F11+F18) -> 1646.76 | G19: =SUM(G11+G18) -> 54.06 | H19: 61.21 | I19: 217.30
A21: Горячий завтрак (младшие)
A22: фрукты | C22: Фрукты (яблоки) | D22: 100 | F22: 47.00 | G22: 0.40 | H22: 0.40 | I22: 9.80
A23: 2 блюдо | B23: 284 | C23: Запеканка картофельная с мясом 50/130 | D23: 180 | F23: 387.85 | G23: 17.74 | H23: 24.03 | I23: 28.30
A24: напиток | B24: 349 | C24: Напиток из сухофруктов | D24: 200 | F24: 132.80 | G24: 0.70 | H24: 0.10 | I24: 32.00
A25: хлеб | C25: Хлеб пшеничный | D25: 30 | F25: 71.00 | G25: 2.28 | H25: 0.24 | I25: 14.76
C27: бесплатное питание младшие | D27: 510 | E27: 68.45 | F27: =SUM(F22:F25) -> 638.65 | G27: =SUM(G22:G25) -> 21.12 | H27: 24.77 | I27: 84.86
A29: Раздел | B29: № рец. | C29: Блюдо | D29: Выход, г | E29: Цена | F29: Ккал | G29: Белки | H29: Жиры | I29: Угл-ды
A30: Старшие
A31: фрукты | C31: Фрукты (мандарины) | D31: 100 | F31: 38.00 | G31: 0.80 | H31: 0.20 | I31: 7.50
A32: 2 блюдо | B32: 284 | C32: Запеканка картофельная с мясом с маслом слив. | D32: 240/10 | F32: 287.07 | G32: 10.53 | H32: 19.43 | I32: 22.33
A33: напиток | B33: 349 | C33: Напиток из сухофруктов | D33: 200 | F33: 132.80 | G33: 0.70 | H33: 0.10 | I33: 32.00
A34: хлеб | C34: Хлеб пшеничный/ржаной | D34: 40/30 | F34: 153.28 | G34: 5.01 | H34: 0.68 | I34: 31.60
C36: питание старшие | D36: 620 | E36: 78.00 | F36: =SUM(F31:F34) -> 611.15 | G36: =SUM(G31:G34) -> 17.04 | H36: 20.41 | I36: 93.43

Sheet 18.11
A2: МБОУ "СОШ №33" НМР РТ | D2: Отд./корп | E2: 1 неделя | H2: День | I2: 2022-11-18
A4: Раздел | B4: № рец. | C4: Блюдо | D4: Выход, г | E4: Цена | F4: Ккал | G4: Белки | H4: Жиры | I4: Углеводы
A5: Завтрак
A6: фрукты | C6: Фрукты (мандарины) | D6: 100 | F6: 38.00 | G6: 0.80 | H6: 0.20 | I6: 7.50
B7: 3 | C7: Бутерброд с сыром (30/15/5) | D7: 50 | F7: 155.00 | G7: 6.27 | H7: 7.03 | I7: 14.83
A8: 2 блюдо | B8: 233 | C8: Запеканка из творога со сгущенным молоком | D8: 130/20 | F8: 364.9 | G8: 14.29 | H8: 17.4 | I8: 27.82
A9: гор.напиток | B9: 377 | C9: Чай с сахаром и лимоном | D9: 187/8/5 | F9: 34.02 | G9: 0.13 | H9: 0.02 | I9: 8.20
D11: 500 | E11: 37.55 | F11: =SUM(F6:F10) -> 591.92 | G11: =SUM(G6:G10) -> 21.49 | H11: 24.65 | I11: 58.35
A12: Обед
A13: доп.гарнир | B13: 42 | C13: Салат из моркови с сахаром | D13: 60 | F13: 50.00 | G13: 0.56 | H13: 2.13 | I13: 4.45
A14: 1 блюдо | B14: 119 | C14: Суп гороховый с гренками | D14: 200/10 | F14: 296.52 | G14: 7.49 | H14: 18.58 | I14: 20.36
A15: 2 блюдо | B15: 290 | C15: Птица тушеная в сметанно-томатном соусе | D15: 50/50 | F15: 166.00 | G15: 11.65 | H15: 11.66 | I15: 3.51
A16: гарнир | B16: 203 | C16: Макароны отварные с маслом сливочным | D16: 150/3 | F16: 189.00 | G16: 5.71 | H16: 4.27 | I16: 31.95
A17: напиток | B17: 344 | C17: Компот из свежих яблок | D17: 200 | F17: 62.73 | G17: 0.16 | H17: 0.16 | I17: 14.90
A18: хлеб | C18: Хлеб ржаной | D18: 50 | F18: 99.00 | G18: 2.92 | H18: 0.60 | I18: 19.80
D19: 773 | E19: 68.45 | F19: =SUM(F13:F18) -> 863.25 | G19: =SUM(G13:G18) -> 28.49 | H19: 37.40 | I19: 94.97
C20: бесп питание младшие + допол. питание | D20: =D11+D19 -> 1273 | E20: =SUM(E11+E19) -> 106.00 | F20: =SUM(F11+F19) -> 1455.17 | G20: =SUM(G11+G19) -> 49.98 | H20: 62.05 | I20: 153.32
A22: Горячий завтрак (младшие)
A23: фрукты | C23: Фрукты (мандарины) | D23: 100 | F23: 38.00 | G23: 0.80 | H23: 0.20 | I23: 7.50
A24: гарнир | B24: 233 | C24: Запеканка из творога со сгущенным молоком | D24: 150/20 | F24: 419.82 | G24: 17.81 | H24: 19.28 | I24: 30.68
A25: напиток | B25: 377 | C25: Чай с сахаром и лимоном | D25: 187/8/5 | F25: 34.02 | G25: 0.13 | H25: 0.02 | I25: 8.20
A26: хлеб | C26: Хлеб пшеничный | D26: 30 | F26: 71.00 | G26: 2.28 | H26: 0.24 | I26: 14.76
C28: бесплатное питание младшие | D28: 500 | E28: 68.45 | F28: =SUM(F23:F26) -> 562.84 | G28: =SUM(G23:G26) -> 21.02 | H28: =SUM(H23:H26) -> 19.74 | I28: =SUM(I23:I26) -> 61.14
A30: Раздел | B30: № рец. | C30: Блюдо | D30: Выход, г | E30: Цена | F30: Ккал | G30: Белки | H30: Жиры | I30: Углеводы
A31: Старшие
A32: 1 блюдо | B32: 119 | C32: Суп гороховый с гренками | D32: 250/10 | F32: 394.25 | G32: 10.62 | H32: 7.83 | I32: 23.60
A33: 2 блюдо | B33: 222 | C33: Запеканка из творога со сгущенным молоком | D33: 170/30 | F33: 343.80 | G33: 11.93 | H33: 16.24 | I33: 45.06
A34: напиток | B34: 377 | C34: Чай с сахаром и лимоном | D34: 187/8/5 | F34: 34.02 | G34: 0.13 | H34: 0.02 | I34: 8.20
A35: хлеб | C35: Хлеб ржаной | D35: 40 | F35: 133.65 | G35: 4.46 | H35: 0.81 | I35: 26.73
C37: питание старшие | D37: 700 | E37: 78.00 | F37: =SUM(F32:F35) -> 905.72 | G37: =SUM(G32:G35) -> 27.14 | H37: 24.90 | I37: 103.59

Sheet 19.11
A2: МБОУ "СОШ №33" НМР РТ | D2: Отд./корп | E2: 1 неделя | H2: День | I2: 2022-11-19
A4: Раздел | B4: № рец. | C4: Блюдо | D4: Выход, г | E4: Цена | F4: Ккал | G4: Белки | H4: Жиры | I4: Угл-ды
A5: Старшие
A6: фрукты | C6: Фрукты (яблоки) | D6: 100 | F6: 47.00 | G6: 0.40 | H6: 0.40 | I6: 9.80
A7: 2 блюдо | B7: 279 | C7: Тефтели куриные с рисом паровые с маслом сливочным | D7: 100/5 | F7: 220.29 | G7: 13.71 | H7: 15.39 | I7: 9.94
A8: гарнир | B8: 303 | C8: Каша пшеничная вязкая на воде с маслом сливочным | D8: 180/3 | F8: 202.49 | G8: 4.82 | H8: 7.26 | I8: 29.48
A9: напиток | C9: Напиток из замороженных ягод | D9: 200 | F9: 89.00 | G9: 0.20 | H9: 0.12 | I9: 21.45
A10: хлеб | C10: Хлеб пшеничный/ржаной | D10: 20/20 | F10: 83.60 | G10: 2.64 | H10: 0.40 | I10: 17.46
C12: питание старшие | D12: 628 | E12: 78.00 | F12: =SUM(F7:F10) -> 595.38 | G12: =SUM(G7:G10) -> 21.37 | H12: =SUM(H7:H10) -> 23.17 | I12: =SUM(I7:I10) -> 78.33
